fUST/lending_fUST_20250208
["ID","MTS","AMOUNT","RATE_DAILY","PERIOD"]
[352245788,1739016632545,-389.76664262,0.00010958,2]
[352245789,1739016632559,-300.97335738,0.00010958,2]
[352245790,1739016632568,-500.0,0.00010958,2]
[352245791,1739016632577,-564.26,0.00010958,2]
[352245792,1739016632587,-261.55308941,0.00010958,2]
[352245793,1739016632598,-238.44691059,0.00010958,2]
[352245794,1739016632607,-500.0,0.00010958,2]
[352245795,1739016632617,-201.77620619,0.00010958,2]
[352245796,1739016632629,-500.0,0.00010958,2]
[352245797,1739016632638,-500.0,0.00010958,2]
[352245798,1739016632647,-500.0,0.00010958,2]
[352245799,1739016632656,-1126.16468322,0.00010958,2]
[352245834,1739016637622,-188.22531678,0.00010958,2]
[352245837,1739016637633,-99.64504481,0.00010958,2]
[352245842,1739016637675,-448.32153028,0.00010958,2]
[352245844,1739016637685,-438.22386094,0.00010958,2]
[352245846,1739016637695,-1339.02,0.00010958,2]
[352245848,1739016637704,-506.92400394,0.00010958,2]
[352245850,1739016637715,-500.0,0.00010958,2]
[352245852,1739016637725,-500.0,0.00010958,2]
[352245854,1739016637734,-500.0,0.00010958,2]
[352245856,1739016637744,-500.0,0.00010958,2]
[352245858,1739016637753,-500.0,0.00010958,2]
[352245860,1739016637762,-500.0,0.00010958,2]
[352245862,1739016637772,-500.0,0.00010958,2]
[352245864,1739016637782,-500.0,0.00010958,2]
[352245866,1739016637791,-500.0,0.00010958,2]
[352245868,1739016637800,-500.0,0.00010958,2]
[352245870,1739016637809,-1002.09,0.00010958,2]
[352245873,1739016637818,-500.0,0.00010958,2]
[352245876,1739016637828,-500.0,0.00010958,2]
[352245878,1739016637837,-500.0,0.00010958,2]
[352245880,1739016637846,-500.0,0.00010958,2]
[352245882,1739016637855,-1397.62,0.00010958,2]
[352245884,1739016637864,-500.0,0.00010958,2]
[352245886,1739016637873,-500.0,0.00010958,2]
[352245888,1739016637882,-500.0,0.00010958,2]
[352245890,1739016637891,-500.0,0.00010958,2]
[352245892,1739016637900,-500.0,0.00010958,2]
[352245894,1739016637909,-500.0,0.00010958,2]
[352245896,1739016637918,-272.9783568,0.00010958,2]
[352245898,1739016637927,-500.0,0.00010958,2]
[352245900,1739016637937,-500.0,0.00010958,2]
[352245902,1739016637946,-500.0,0.00010958,2]
[352245904,1739016637954,-500.0,0.00010958,2]
[352245906,1739016637964,-680.57,0.00010958,2]
[352245908,1739016637973,-742.35,0.00010958,2]
[352245910,1739016637981,-500.0,0.00010958,2]
[352245912,1739016637992,-500.0,0.00010958,2]
[352245933,1739016638176,-500.0,0.00010958,2]
[352245935,1739016638186,-500.0,0.00010958,2]
[352245937,1739016638195,-1460.45,0.00010958,2]
[352245939,1739016638205,-500.0,0.00010958,2]
[352245942,1739016638214,-500.0,0.00010958,2]
[352245944,1739016638223,-500.0,0.00010958,2]
[352245946,1739016638232,-321.09939492,0.00010958,2]
[352245948,1739016638243,-172.24545994,0.00010958,2]
[352245950,1739016638252,-654.57,0.00010958,2]
[352245952,1739016638261,-500.0,0.00010958,2]
[352245954,1739016638270,-500.0,0.00010958,2]
[352245956,1739016638280,-500.0,0.00010958,2]
[352245957,1739016638289,-500.0,0.00010958,2]
[352245960,1739016638299,-500.0,0.00010958,2]
[352245962,1739016638310,-500.0,0.00010958,2]
[352245963,1739016638322,-500.0,0.00010958,2]
[352245965,1739016638332,-1046.08,0.00010958,2]
[352245967,1739016638341,-500.0,0.00010958,2]
[352245969,1739016638351,-915.98,0.00010958,2]
[352245971,1739016638359,-500.0,0.00010958,2]
[352245974,1739016638369,-500.0,0.00010958,2]
[352245976,1739016638379,-500.0,0.00010958,2]
[352245978,1739016638388,-500.0,0.00010958,2]
[352245980,1739016638397,-500.80239085,0.00010958,2]
[352245982,1739016638406,-500.0,0.00010958,2]
[352245984,1739016638415,-500.0,0.00010958,2]
[352245986,1739016638424,-500.0,0.00010958,2]
[352245988,1739016638432,-511.92,0.00010958,2]
[352245990,1739016638441,-500.0,0.00010958,2]
[352245992,1739016638451,-485.0155381,0.00010958,2]
[352245994,1739016638460,-500.0,0.00010958,2]
[352245996,1739016638469,-500.0,0.00010958,2]
[352245997,1739016638479,-768.17,0.00010958,2]
[352245999,1739016638489,-774.76,0.00010958,2]
[352246001,1739016638498,-500.0,0.00010958,2]
[352246003,1739016638508,-561.63,0.00010958,2]
[352246005,1739016638517,-500.0,0.00010958,2]
[352246007,1739016638526,-1401.43,0.00010958,2]
[352246009,1739016638535,-474.45704257,0.00010958,2]
[352246011,1739016638545,-500.0,0.00010958,2]
[352246013,1739016638555,-500.0,0.00010958,2]
[352246015,1739016638563,-16242.73,0.00010958,2]
[352246017,1739016638572,-500.0,0.00010958,2]
[352246019,1739016638581,-501.59986121,0.00010958,2]
[352246021,1739016638590,-466.12527178,0.00010958,2]
[352246023,1739016638599,-500.0,0.00010958,2]
[352246025,1739016638609,-1100.89,0.00010958,2]
[352246027,1739016638618,-500.0,0.00010958,2]
[352246029,1739016638627,-500.0,0.00010958,2]
[352246031,1739016638637,-500.0,0.00010958,2]
[352246033,1739016638649,-500.0,0.00010958,2]
[352246035,1739016638658,-162.77288074,0.00010958,2]
[352246037,1739016638668,-500.0,0.00010958,2]
[352246039,1739016638677,-500.0,0.00010958,2]
[352246041,1739016638687,-500.0,0.00010958,2]
[352246042,1739016638696,-500.0,0.00010958,2]
[352246044,1739016638706,-500.0,0.00010958,2]
[352246046,1739016638715,-1163.06,0.00010958,2]
[352246048,1739016638724,-500.0,0.00010958,2]
[352246050,1739016638733,-500.0,0.00010958,2]
[352246052,1739016638744,-500.0,0.00010958,2]
[352246054,1739016638754,-3040.25,0.00010958,2]
[352246056,1739016638764,-500.0,0.00010958,2]
[352246058,1739016638773,-742.28,0.00010958,2]
[352246060,1739016638782,-3881.11,0.00010958,2]
[352246062,1739016638792,-500.0,0.00010958,2]
[352246064,1739016638801,-500.0,0.00010958,2]
[352246066,1739016638811,-500.0,0.00010958,2]
[352246068,1739016638820,-500.0,0.00010958,2]
[352246070,1739016638829,-500.0,0.00010958,2]
[352246072,1739016638838,-501.15220094,0.00010958,2]
[352246074,1739016638847,-500.0,0.00010958,2]
[352246076,1739016638857,-500.0,0.00010958,2]
[352246078,1739016638866,-1737.23,0.00010958,2]
[352246080,1739016638875,-500.0,0.00010958,2]
[352246082,1739016638884,-3284.92,0.00010958,2]
[352246084,1739016638894,-500.0,0.00010958,2]
[352246086,1739016638903,-500.0,0.00010958,2]
[352246088,1739016638912,-246.24229999,0.00010958,2]
[352246090,1739016638921,-1247.41,0.00010958,2]
[352246092,1739016638930,-500.0,0.00010958,2]
[352246094,1739016638940,-500.0,0.00010958,2]
[352246096,1739016638949,-500.0,0.00010958,2]
[352246098,1739016638958,-500.0,0.00010958,2]
[352246100,1739016638967,-500.0,0.00010958,2]
[352246102,1739016638976,-500.0,0.00010958,2]
[352246104,1739016638985,-500.0,0.00010958,2]
[352246106,1739016638994,-500.0,0.00010958,2]
[352246108,1739016639003,-500.0,0.00010958,2]
[352246110,1739016639012,-500.0,0.00010958,2]
[352246112,1739016639021,-404.03019968,0.00010958,2]
[352246114,1739016639031,-500.0,0.00010958,2]
[352246116,1739016639039,-500.0,0.00010958,2]
[352246118,1739016639049,-500.0,0.00010958,2]
[352246120,1739016639060,-500.0,0.00010958,2]
[352246122,1739016639069,-500.0,0.00010958,2]
[352246124,1739016639079,-500.0,0.00010958,2]
[352246126,1739016639088,-1742.68,0.00010958,2]
[352246128,1739016639109,-1544.06,0.00010958,2]
[352246130,1739016639118,-500.0,0.00010958,2]
[352246132,1739016639127,-1024.74,0.00010958,2]
[352246134,1739016639136,-500.0,0.00010958,2]
[352246136,1739016639146,-500.0,0.00010958,2]
[352246138,1739016639155,-4373.29,0.00010958,2]
[352246140,1739016639164,-500.0,0.00010958,2]
[352246142,1739016639174,-500.0,0.00010958,2]
[352246144,1739016639183,-4678.1,0.00010958,2]
[352246146,1739016639193,-500.0,0.00010958,2]
[352246148,1739016639202,-2222.78,0.00010958,2]
[352246150,1739016639213,-500.0,0.00010958,2]
[352246152,1739016639223,-500.0,0.00010958,2]
[352246155,1739016639233,-500.0,0.00010958,2]
[352246159,1739016639246,-500.0,0.00010958,2]
[352246162,1739016639255,-500.0,0.00010958,2]
[352246165,1739016639264,-500.0,0.00010958,2]
[352246168,1739016639274,-500.0,0.00010958,2]
[352246171,1739016639283,-1286.62,0.00010958,2]
[352246173,1739016639292,-500.0,0.00010958,2]
[352246176,1739016639302,-500.0,0.00010958,2]
[352246178,1739016639311,-500.0,0.00010958,2]
[352246180,1739016639320,-500.0,0.00010958,2]
[352246182,1739016639330,-500.0,0.00010958,2]
[352246184,1739016639339,-500.0,0.00010958,2]
[352246186,1739016639348,-500.0,0.00010958,2]
[352246188,1739016639357,-500.0,0.00010958,2]
[352246190,1739016639366,-500.0,0.00010958,2]
[352246192,1739016639375,-1538.17,0.00010958,2]
[352246194,1739016639384,-500.0,0.00010958,2]
[352246196,1739016639393,-500.0,0.00010958,2]
[352246198,1739016639402,-500.0,0.00010958,2]
[352246200,1739016639411,-17493.96,0.00010958,2]
[352246202,1739016639419,-500.0,0.00010958,2]
[352246204,1739016639428,-612.75,0.00010958,2]
[352246206,1739016639438,-500.0,0.00010958,2]
[352246208,1739016639447,-500.0,0.00010958,2]
[352246210,1739016639457,-49334.29,0.00010958,2]
[352246212,1739016639466,-500.0,0.00010958,2]
[352246214,1739016639476,-500.0,0.00010958,2]
[352246216,1739016639486,-500.0,0.00010958,2]
[352246218,1739016639495,-500.0,0.00010958,2]
[352246220,1739016639504,-500.0,0.00010958,2]
[352246222,1739016639513,-2208.42,0.00010958,2]
[352246224,1739016639522,-500.0,0.00010958,2]
[352246226,1739016639531,-1547.0,0.00010958,2]
[352246228,1739016639541,-2036.7,0.00010958,2]
[352246230,1739016639551,-693.15,0.00010958,2]
[352246232,1739016639560,-500.0,0.00010958,2]
[352246234,1739016639569,-500.0,0.00010958,2]
[352246236,1739016639578,-1291.97,0.00010958,2]
[352246238,1739016639587,-500.0,0.00010958,2]
[352246240,1739016639596,-2091.47,0.00010958,2]
[352246242,1739016639605,-500.0,0.00010958,2]
[352246244,1739016639614,-500.0,0.00010958,2]
[352246246,1739016639623,-500.0,0.00010958,2]
[352246248,1739016639634,-583.67,0.00010958,2]
[352246250,1739016639646,-500.0,0.00010958,2]
[352246252,1739016639655,-500.0,0.00010958,2]
[352246254,1739016639664,-500.0,0.00010958,2]
[352246256,1739016639675,-500.0,0.00010958,2]
[352246258,1739016639684,-500.0,0.00010958,2]
[352246260,1739016639693,-500.0,0.00010958,2]
[352246262,1739016639702,-500.0,0.00010958,2]
[352246264,1739016639713,-368.67574739,0.00010958,2]
[352246266,1739016639721,-500.0,0.00010958,2]
[352246268,1739016639730,-504.44,0.00010958,2]
[352246270,1739016639740,-500.0,0.00010958,2]
[352246272,1739016639749,-893.61,0.00010958,2]
[352246274,1739016639759,-1849.9,0.00010958,2]
[352246276,1739016639768,-500.0,0.00010958,2]
[352246278,1739016639777,-710.74,0.00010958,2]
[352246280,1739016639785,-4172.34,0.00010958,2]
[352246282,1739016639794,-500.0,0.00010958,2]
[352246284,1739016639803,-500.0,0.00010958,2]
[352246286,1739016639812,-500.0,0.00010958,2]
[352246288,1739016639821,-500.0,0.00010958,2]
[352246290,1739016639830,-500.0,0.00010958,2]
[352246292,1739016639839,-500.0,0.00010958,2]
[352246293,1739016639848,-3738.37,0.00010958,2]
[352246295,1739016639857,-500.0,0.00010958,2]
[352246297,1739016639867,-500.0,0.00010958,2]
[352246299,1739016639876,-500.0,0.00010958,2]
[352246301,1739016639885,-500.0,0.00010958,2]
[352246303,1739016639894,-4209.68,0.00010958,2]
[352246305,1739016639903,-500.0,0.00010958,2]
[352246307,1739016639913,-500.0,0.00010958,2]
[352246310,1739016639922,-1603.73,0.00010958,2]
[352246311,1739016639931,-500.0,0.00010958,2]
[352246313,1739016639941,-1232.46,0.00010958,2]
[352246315,1739016639950,-856.23,0.00010958,2]
[352246317,1739016639959,-500.0,0.00010958,2]
[352246319,1739016639968,-500.0,0.00010958,2]
[352246321,1739016639977,-1747.62,0.00010958,2]
[352246323,1739016639985,-935.88,0.00010958,2]
[352246325,1739016639996,-500.0,0.00010958,2]
[352246327,1739016640005,-536.54576892,0.00010958,2]
[352246329,1739016640014,-1749.15,0.00010958,2]
[352246331,1739016640024,-500.0,0.00010958,2]
[352246333,1739016640034,-500.0,0.00010958,2]
[352246335,1739016640043,-500.0,0.00010958,2]
[352246337,1739016640053,-9792.37,0.00010958,2]
[352246339,1739016640062,-500.0,0.00010958,2]
[352246341,1739016640071,-1378.16,0.00010958,2]
[352246343,1739016640080,-624.99243347,0.00010958,2]
[352246345,1739016640089,-664.04,0.00010958,2]
[352246347,1739016640098,-500.0,0.00010958,2]
[352246349,1739016640107,-500.0,0.00010958,2]
[352246351,1739016640116,-500.0,0.00010958,2]
[352246353,1739016640126,-500.0,0.00010958,2]
[352246355,1739016640135,-500.0,0.00010958,2]
[352246357,1739016640144,-500.0,0.00010958,2]
[352246359,1739016640153,-506.19487016,0.00010958,2]
[352246361,1739016640162,-500.0,0.00010958,2]
[352246363,1739016640171,-500.0,0.00010958,2]
[352246365,1739016640180,-432.0949103,0.00010958,2]
[352246367,1739016640189,-500.0,0.00010958,2]
[352246369,1739016640198,-500.0,0.00010958,2]
[352246371,1739016640208,-500.0,0.00010958,2]
[352246373,1739016640217,-500.0,0.00010958,2]
[352246375,1739016640227,-1943.92,0.00010958,2]
[352246377,1739016640244,-4646.5,0.00010958,2]
[352246379,1739016640253,-500.0,0.00010958,2]
[352246381,1739016640262,-500.0,0.00010958,2]
[352246383,1739016640272,-500.0,0.00010958,2]
[352246385,1739016640282,-1542.05,0.00010958,2]
[352246387,1739016640292,-500.0,0.00010958,2]
[352246389,1739016640303,-516.52574689,0.00010958,2]
[352246391,1739016640314,-580.54,0.00010959,2]
[352246393,1739016640325,-483.79,0.00010959,2]
[352246395,1739016640334,-403.15,0.00010959,2]
[352246397,1739016640343,-335.96,0.00010959,2]
[352246399,1739016640353,-279.97,0.00010959,2]
[352246401,1739016640362,-500.0,0.00010994,2]
[352246403,1739016640374,-2328.48994508,0.00010995,2]
[352246405,1739016640385,-154.669,0.0001106,2]
[352246407,1739016640394,-500.0,0.00011094,2]
[352246409,1739016640403,-346.6,0.00011094,2]
[352246411,1739016640411,-500.0,0.00011095,2]
[352246413,1739016640421,-500.0,0.00011095,2]
[352246415,1739016640430,-500.0,0.00011095,2]
[352246417,1739016640439,-618.50508399,0.00011095,2]
[352246419,1739016640448,-500.0,0.00011095,2]
[352246421,1739016640457,-500.0,0.00011095,2]
[352246423,1739016640467,-744.14,0.00011095,2]
[352246425,1739016640475,-500.0,0.00011095,2]
[352246427,1739016640485,-500.0,0.00011095,2]
[352246430,1739016640495,-500.0,0.00011095,2]
[352246431,1739016640505,-500.0,0.00011095,2]
[352246434,1739016640515,-534.55,0.00011095,2]
[352246436,1739016640524,-500.0,0.00011095,2]
[352246437,1739016640533,-500.0,0.00011095,2]
[352246440,1739016640543,-500.0,0.00011095,2]
[352246442,1739016640552,-500.0,0.00011095,2]
[352246444,1739016640561,-500.0,0.00011095,2]
[352246446,1739016640570,-500.0,0.00011095,2]
[352246448,1739016640579,-986.72,0.00011095,2]
[352246449,1739016640589,-567.61,0.00011095,2]
[352246452,1739016640598,-576.62971255,0.00011095,2]
[352246454,1739016640607,-500.0,0.00011095,2]
[352246456,1739016640616,-500.0,0.00011095,2]
[352246458,1739016640626,-482.67531648,0.00011095,2]
[352246459,1739016640636,-511.05316783,0.00011095,2]
[352246461,1739016640649,-500.0,0.00011095,2]
[352246463,1739016640658,-500.0,0.00011095,2]
[352246465,1739016640667,-500.0,0.00011095,2]
[352246467,1739016640676,-500.0,0.00011095,2]
[352246469,1739016640686,-500.0,0.00011095,2]
[352246471,1739016640695,-500.0,0.00011095,2]
[352246473,1739016640704,-426.54006714,0.00011095,2]
[352246475,1739016640713,-500.0,0.00011095,2]
[352246477,1739016640722,-499.55,0.00011095,2]
[352246479,1739016640732,-500.0,0.00011095,2]
[352246481,1739016640741,-500.0,0.00011095,2]
[352246483,1739016640750,-500.0,0.00011095,2]
[352246485,1739016640759,-500.0,0.00011095,2]
[352246487,1739016640769,-500.0,0.00011095,2]
[352246489,1739016640778,-814.29,0.00011095,2]
[352246491,1739016640787,-500.0,0.00011095,2]
[352246493,1739016640796,-500.0,0.00011095,2]
[352246495,1739016640806,-500.0,0.00011095,2]
[352246497,1739016640815,-692.27,0.00011095,2]
[352246499,1739016640824,-232.57135564,0.00011095,2]
[352246501,1739016640833,-500.0,0.00011095,2]
[352246503,1739016640842,-354.83054355,0.00011095,2]
[352246505,1739016640856,-500.0,0.00011095,2]
[352246507,1739016640865,-500.0,0.00011095,2]
[352246509,1739016640874,-271.38286363,0.00011095,2]
[352246511,1739016640883,-500.0,0.00011095,2]
[352246513,1739016640892,-500.0,0.00011095,2]
[352246515,1739016640901,-690.74,0.00011095,2]
[352246517,1739016640910,-500.0,0.00011095,2]
[352246519,1739016640919,-564.26,0.00011095,2]
[352246521,1739016640928,-500.0,0.00011095,2]
[352246523,1739016640938,-500.0,0.00011095,2]
[352246525,1739016640947,-500.0,0.00011095,2]
[352246527,1739016640956,-500.0,0.00011095,2]
[352246529,1739016640966,-1314.39,0.00011095,2]
[352246531,1739016640975,-1339.02,0.00011095,2]
[352246533,1739016640984,-642.11100735,0.00011095,2]
[352246535,1739016640995,-500.0,0.00011095,2]
[352246537,1739016641005,-500.0,0.00011095,2]
[352246539,1739016641016,-500.0,0.00011095,2]
[352246541,1739016641025,-500.0,0.00011095,2]
[352246543,1739016641034,-500.0,0.00011095,2]
[352246545,1739016641043,-500.0,0.00011095,2]
[352246547,1739016641053,-500.0,0.00011095,2]
[352246549,1739016641063,-500.0,0.00011095,2]
[352246551,1739016641072,-1002.09,0.00011095,2]
[352246553,1739016641081,-500.0,0.00011095,2]
[352246555,1739016641090,-500.0,0.00011095,2]
[352246557,1739016641099,-500.0,0.00011095,2]
[352246559,1739016641109,-500.0,0.00011095,2]
[352246561,1739016641117,-1397.62,0.00011095,2]
[352246563,1739016641126,-500.0,0.00011095,2]
[352246565,1739016641135,-500.0,0.00011095,2]
[352246567,1739016641144,-500.0,0.00011095,2]
[352246569,1739016641154,-500.0,0.00011095,2]
[352246571,1739016641163,-500.0,0.00011095,2]
[352246572,1739016641172,-500.0,0.00011095,2]
[352246573,1739016641189,-500.0,0.00011095,2]
[352246574,1739016641202,-500.0,0.00011095,2]
[352246575,1739016641211,-680.57,0.00011095,2]
[352246576,1739016641221,-742.35,0.00011095,2]
[352246577,1739016641230,-510.0,0.00011095,2]
[352246578,1739016641239,-500.0,0.00011095,2]
[352246579,1739016641249,-500.0,0.00011095,2]
[352246580,1739016641258,-1460.45,0.00011095,2]
[352246581,1739016641268,-500.0,0.00011095,2]
[352246582,1739016641277,-500.0,0.00011095,2]
[352246583,1739016641288,-500.0,0.00011095,2]
[352246584,1739016641297,-654.57,0.00011095,2]
[352246585,1739016641307,-526.53405721,0.00011095,2]
[352246586,1739016641316,-500.0,0.00011095,2]
[352246587,1739016641326,-500.0,0.00011095,2]
[352246588,1739016641336,-500.0,0.00011095,2]
[352246589,1739016641345,-1046.08,0.00011095,2]
[352246590,1739016641355,-500.0,0.00011095,2]
[352246591,1739016641366,-915.98,0.00011095,2]
[352246592,1739016641376,-500.0,0.00011095,2]
[352246594,1739016641385,-500.0,0.00011095,2]
[352246596,1739016641395,-500.0,0.00011095,2]
[352246598,1739016641404,-500.0,0.00011095,2]
[352246600,1739016641413,-500.0,0.00011095,2]
[352246602,1739016641424,-500.0,0.00011095,2]
[352246604,1739016641433,-500.0,0.00011095,2]
[352246606,1739016641442,-518.1928402,0.00011095,2]
[352246608,1739016641452,-768.17,0.00011095,2]
[352246610,1739016641461,-500.0,0.00011095,2]
[352246612,1739016641471,-774.76,0.00011095,2]
[352246614,1739016641481,-1401.43,0.00011095,2]
[352246616,1739016641491,-500.0,0.00011095,2]
[352246618,1739016641501,-16242.73,0.00011095,2]
[352246620,1739016641510,-500.0,0.00011095,2]
[352246622,1739016641520,-1100.89,0.00011095,2]
[352246624,1739016641529,-500.0,0.00011095,2]
[352246626,1739016641539,-500.0,0.00011095,2]
[352246628,1739016641548,-500.0,0.00011095,2]
[352246629,1739016641557,-500.0,0.00011095,2]
[352246631,1739016641567,-500.0,0.00011095,2]
[352246633,1739016641576,-500.0,0.00011095,2]
[352246635,1739016641586,-1163.06,0.00011095,2]
[352246637,1739016641595,-500.0,0.00011095,2]
[352246639,1739016641604,-3040.25,0.00011095,2]
[352246641,1739016641613,-742.28,0.00011095,2]
[352246643,1739016641623,-500.0,0.00011095,2]
[352246645,1739016641635,-3881.11,0.00011095,2]
[352246647,1739016641645,-500.0,0.00011095,2]
[352246649,1739016641654,-500.0,0.00011095,2]
[352246651,1739016641663,-243.74158017,0.00011095,2]
[352246653,1739016641674,-1737.23,0.00011095,2]
[352246655,1739016641683,-3284.92,0.00011095,2]
[352246671,1739016641826,-1247.41,0.00011095,2]
[352246673,1739016641836,-500.0,0.00011095,2]
[352246675,1739016641845,-500.0,0.00011095,2]
[352246677,1739016641854,-500.0,0.00011095,2]
[352246679,1739016641864,-500.0,0.00011095,2]
[352246681,1739016641873,-500.0,0.00011095,2]
[352246683,1739016641882,-500.0,0.00011095,2]
[352246685,1739016641891,-500.0,0.00011095,2]
[352246687,1739016641900,-223.99599155,0.00011095,2]
[352246689,1739016641910,-500.0,0.00011095,2]
[352246691,1739016641919,-500.0,0.00011095,2]
[352246693,1739016641929,-500.0,0.00011095,2]
[352246695,1739016641938,-500.0,0.00011095,2]
[352246697,1739016641947,-500.0,0.00011095,2]
[352246699,1739016641957,-1742.68,0.00011095,2]
[352246701,1739016641966,-1544.06,0.00011095,2]
[352246703,1739016641975,-500.0,0.00011095,2]
[352246705,1739016641985,-1024.74,0.00011095,2]
[352246707,1739016641994,-500.0,0.00011095,2]
[352246709,1739016642003,-4373.29,0.00011095,2]
[352246711,1739016642013,-500.0,0.00011095,2]
[352246713,1739016642022,-500.0,0.00011095,2]
[352246716,1739016642031,-4678.1,0.00011095,2]
[352246718,1739016642041,-500.0,0.00011095,2]
[352246720,1739016642050,-2222.78,0.00011095,2]
[352246722,1739016642059,-500.0,0.00011095,2]
[352246724,1739016642068,-1286.62,0.00011095,2]
[352246726,1739016642078,-1538.17,0.00011095,2]
[352246728,1739016642087,-500.0,0.00011095,2]
[352246729,1739016642097,-500.0,0.00011095,2]
[352246731,1739016642106,-17493.96,0.00011095,2]
[352246733,1739016642117,-500.0,0.00011095,2]
[352246735,1739016642126,-612.75,0.00011095,2]
[352246737,1739016642135,-500.0,0.00011095,2]
[352246739,1739016642144,-49334.29,0.00011095,2]
[352246741,1739016642154,-500.0,0.00011095,2]
[352246743,1739016642163,-500.0,0.00011095,2]
[352246745,1739016642174,-2208.42,0.00011095,2]
[352246747,1739016642184,-500.0,0.00011095,2]
[352246748,1739016642193,-1547.0,0.00011095,2]
[352246751,1739016642203,-2036.7,0.00011095,2]
[352246753,1739016642212,-693.15,0.00011095,2]
[352246754,1739016642221,-500.0,0.00011095,2]
[352246757,1739016642231,-500.0,0.00011095,2]
[352246759,1739016642241,-1291.97,0.00011095,2]
[352246761,1739016642250,-500.0,0.00011095,2]
[352246763,1739016642259,-2091.47,0.00011095,2]
[352246765,1739016642269,-500.0,0.00011095,2]
[352246768,1739016642278,-500.0,0.00011095,2]
[352246771,1739016642288,-583.67,0.00011095,2]
[352246773,1739016642297,-500.0,0.00011095,2]
[352246777,1739016642306,-500.0,0.00011095,2]
[352246778,1739016642315,-500.0,0.00011095,2]
[352246780,1739016642327,-500.0,0.00011095,2]
[352246782,1739016642337,-500.0,0.00011095,2]
[352246784,1739016642347,-500.0,0.00011095,2]
[352246786,1739016642356,-500.0,0.00011095,2]
[352246788,1739016642366,-504.44,0.00011095,2]
[352246790,1739016642376,-500.0,0.00011095,2]
[352246792,1739016642385,-500.0,0.00011095,2]
[352246794,1739016642394,-893.61,0.00011095,2]
[352246796,1739016642404,-1849.9,0.00011095,2]
[352246798,1739016642413,-500.0,0.00011095,2]
[352246800,1739016642423,-710.74,0.00011095,2]
[352246803,1739016642433,-4172.34,0.00011095,2]
[352246805,1739016642442,-500.0,0.00011095,2]
[352246807,1739016642451,-596.08398438,0.00011095,2]
[352246809,1739016642460,-500.0,0.00011095,2]
[352246811,1739016642470,-3738.37,0.00011095,2]
[352246812,1739016642479,-500.0,0.00011095,2]
[352246814,1739016642488,-500.0,0.00011095,2]
[352246816,1739016642498,-500.0,0.00011095,2]
[352246818,1739016642507,-4209.68,0.00011095,2]
[352246820,1739016642516,-500.0,0.00011095,2]
[352246822,1739016642526,-1603.73,0.00011095,2]
[352246824,1739016642536,-500.0,0.00011095,2]
[352246826,1739016642545,-1232.46,0.00011095,2]
[352246828,1739016642555,-856.23,0.00011095,2]
[352246830,1739016642564,-500.0,0.00011095,2]
[352246833,1739016642573,-518.24860747,0.00011095,2]
[352246835,1739016642583,-1747.62,0.00011095,2]